Workbook

Sheet 一体形LED
A1: 省エネ計算ツール【一体形ＬＥＤベース器具 スクエアタイプ】
A2: 従来の蛍光灯器具と一体形ＬＥＤベース器具の省エネ試算ができます。目安としてご活用ください。
A3: 従来の蛍光灯器具 | G3: 一体形ＬＥＤベース器具
A4: ■従来の蛍光灯器具を選んでください。↓（枠内から選択） | G4: ■おすすめの一体形ＬＥＤベース器具スクエアタイプです。
B5: ▼ | F5: ※1 | G5: 特長 | H5: ●蛍光灯スクエア器具とほぼ同等の明るさ ※10
H6: ●固有エネルギー消費効率141.4～151.0 lm/W ※11
H7: ●端部まできれいに光る新ＬＥＤ光源ユニット採用
A8: 品 名 | C8: =IF((VLOOKUP(品名,DATA!$A$4:$AD$17,1,0))="▼","",VLOOKUP(品名,DATA!$A$4:$AD$17,1,0)) ->  | G8: 品 名 | I8: =IF((VLOOKUP(品名,DATA!$A$4:$AD$17,18,0))="","",VLOOKUP(品名,DATA!$A$4:$AD$17,18,0)) -> 
A10: 形 式 | C10: =IF(VLOOKUP(品名,DATA!$A$4:$AD$17,2,0)="","",(VLOOKUP(品名,DATA!$A$4:$AD$17,2,0))) ->  | G10: 形 式 | I10: =IF(VLOOKUP(品名,DATA!$A$4:$AD$17,19,0)="","",VLOOKUP(品名,DATA!$A$4:$AD$17,19,0)) -> 
A11: 価 格 （税抜） | C11: - | G11: 価 格 （税抜） | I11: <積算見積価格>※2 | K11: <購入価格で試算>※3
K12: =IF(OR($F$11="",I12=""),"",I12*$L$11) -> 
I13: =IF((VLOOKUP(品名,DATA!$A$4:$AD$17,22,0))="",0,VLOOKUP(品名,DATA!$A$4:$AD$17,22,0)) -> 0 | J13: 円 | K13: 0 | L13: 円
A15: 全光束 ※4 | C15: =IF((VLOOKUP(品名,DATA!$A$4:$AD$17,11,0))="","",VLOOKUP(品名,DATA!$A$4:$AD$17,11,0)) ->  | D15: lm | G15: 定格光束 ※5 | I15: =IF((VLOOKUP(品名,DATA!$A$4:$AD$17,28,0))="","",VLOOKUP(品名,DATA!$A$4:$AD$17,28,0)) ->  | J15: lm
A16: 定格消費電力 ※6 | C16: =IF((VLOOKUP(品名,DATA!$A$4:$AD$17,8,0))="","",VLOOKUP(品名,DATA!$A$4:$AD$17,8,0)) ->  | D16: W | E16: =IF((VLOOKUP(品名,DATA!$A$4:$AD$17,13,0))=0,"",VLOOKUP(品名,DATA!$A$4:$AD$17,13,0)) ->  | F16: =IF((VLOOKUP(品名,DATA!$A$4:$AD$17,9,0))="","",VLOOKUP(品名,DATA!$A$4:$AD$17,9,0)) ->  | G16: 定格消費電力 ※6 | I16: =IF((VLOOKUP(品名,DATA!$A$4:$AD$17,25,0))="","",VLOOKUP(品名,DATA!$A$4:$AD$17,25,0)) ->  | J16: W | K16: =IF((VLOOKUP(品名,DATA!$A$4:$AD$17,30,0))="","",VLOOKUP(品名,DATA!$A$4:$AD$17,30,0)) ->  | L16: =IF((VLOOKUP(品名,DATA!$A$4:$AD$17,26,0))="","",VLOOKUP(品名,DATA!$A$4:$AD$17,26,0)) -> 
A17: 消費効率 | C17: =IF(C15="","",ROUND(C15/C16,1)) ->  | D17: lm/W | G17: 消費効率 | I17: =IF(I15="","",ROUND(I15/I16,1)) ->  | J17: lm/W | K17: 固有エネルギー消費効率
A18: ランプ寿命 | C18: =IF((VLOOKUP(品名,DATA!$A$4:$AD$17,10,0))="","",VLOOKUP(品名,DATA!$A$4:$AD$17,10,0)) ->  | D18: 時間 | G18: LED光源寿命 ※7 | I18: =IF((VLOOKUP(品名,DATA!$A$4:$AD$17,27,0))="","",VLOOKUP(品名,DATA!$A$4:$AD$17,27,0)) ->  | J18: 時間
A19: 外観 | G19: 外観
A23: ■試算条件を入力ください。（枠内に入力ください） | G23: ■試算条件を入力ください。（枠内に入力ください）
A25: 使用台数 | C25: 1 | D25: 台 | G25: 使用台数 | I25: 1 | J25: 台
A27: 電力料金 ※8 | C27: 28 | D27: 円/kWh | E27: ＊任意に変更ができます。 | G27: 電力料金 ※8 | I27: =C27 -> 28 | J27: 円/kWh
A29: 1日の点灯時間 | C29: 10 | D29: 時間/日 | G29: 1日の点灯時間 | I29: =C29 -> 10 | J29: 時間/日
A31: 年間使用日数 | C31: 300 | D31: 日/年 ※9 | G31: 年間使用日数 | I31: =C31 -> 300 | J31: 日/年
A33: 年間点灯時間 | C33: =C29*C31 -> 3000 | D33: 時間/年 | G33: 年間点灯時間 | I33: =I29*I31 -> 3000 | J33: 時間/年
A35: 年間消費電力 | C35: =IF(C16="",0,IF(F16="",C16*C25*C33/1000,F16*C25*C33/1000)) -> 0 | D35: kWh/年 | G35: 年間消費電力 | I35: =IF(I16="",0,IF(L16="",I16*I25*I33/1000,L16*I25*I33/1000)) -> 0 | J35: kWh/年
A37: ランニングコスト | C37: =$C$35*$C$27 -> 0 | D37: 円/年 | G37: ランニングコスト | I37: =$I$35*$I$27 -> 0 | J37: 円/年 | K37: =IF(OR(C37=0,I37=0),"-",IF(((I37-C37)/C37)<0,ROUNDDOWN((I37-C37)/C37,2),ROUNDUP((I37-C37)/C37,2))) -> - | L37: =IF(OR(K37="-",K37=0),"",IF(K37<0,"低減","アップ")) -> 
A39: (年間電力費） | E39: =IF(C14=0,"",IF(J42>0,"●設備費用なしの試算です！",IF(E14=0,"●積算見積価格の試算です！","●購入価格の試算です！"))) ->  | G39: イニシャルコスト | I39: =IF(I13=0,0,IF(K13=0,I13*I25,K13*I25)) -> 0 | J39: 円 | L39: =IF(OR(K39="-",K39=0),"",IF(K39<0,"低減","アップ")) -> 
I40: =IF(I13=0,"",IF(K13=0,"●積算見積価格の試算です！","●購入価格の試算です！")) -> 
N41: ■従来の設備費用を除く試算の場合は、保守ランプ価格（１台当りの価格）を入力ください。※11 | O41: ■従来の設備費用を除く試算の場合は、保守ランプ価格（１台当りの価格）を入力ください。※11 | P41: ■従来の設備費用を除く試算の場合は、保守ランプ価格（１台当りの価格）を入力ください。※11 | Q41: ■従来の設備費用を除く試算の場合は、保守ランプ価格（１台当りの価格）を入力ください。※11 | R41: ■従来の設備費用を除く試算の場合は、保守ランプ価格（１台当りの価格）を入力ください。※11 | S41: ■従来の設備費用を除く試算の場合は、保守ランプ価格（１台当りの価格）を入力ください。※11 | T41: ■従来の設備費用を除く試算の場合は、保守ランプ価格（１台当りの価格）を入力ください。※11 | U41: ■従来の設備費用を除く試算の場合は、保守ランプ価格（１台当りの価格）を入力ください。※11 | V41: ■従来の設備費用を除く試算の場合は、保守ランプ価格（１台当りの価格）を入力ください。※11 | W41: ■従来の設備費用を除く試算の場合は、保守ランプ価格（１台当りの価格）を入力ください。※11 | X41: ■従来の設備費用を除く試算の場合は、保守ランプ価格（１台当りの価格）を入力ください。※11 | Y41: ■従来の設備費用を除く試算の場合は、保守ランプ価格（１台当りの価格）を入力ください。※11 | Z41: ■従来の設備費用を除く試算の場合は、保守ランプ価格（１台当りの価格）を入力ください。※11 | AA41: ■従来の設備費用を除く試算の場合は、保守ランプ価格（１台当りの価格）を入力ください。※11 | AB41: ■従来の設備費用を除く試算の場合は、保守ランプ価格（１台当りの価格）を入力ください。※11 | AC41: ■従来の設備費用を除く試算の場合は、保守ランプ価格（１台当りの価格）を入力ください。※11 | AD41: ■従来の設備費用を除く試算の場合は、保守ランプ価格（１台当りの価格）を入力ください。※11 | AE41: ■従来の設備費用を除く試算の場合は、保守ランプ価格（１台当りの価格）を入力ください。※11 | AF41: ■従来の設備費用を除く試算の場合は、保守ランプ価格（１台当りの価格）を入力ください。※11 | AG41: ■従来の設備費用を除く試算の場合は、保守ランプ価格（１台当りの価格）を入力ください。※11 | AH41: ■従来の設備費用を除く試算の場合は、保守ランプ価格（１台当りの価格）を入力ください。※11 | AI41: ■従来の設備費用を除く試算の場合は、保守ランプ価格（１台当りの価格）を入力ください。※11 | AJ41: ■従来の設備費用を除く試算の場合は、保守ランプ価格（１台当りの価格）を入力ください。※11 | AK41: ■従来の設備費用を除く試算の場合は、保守ランプ価格（１台当りの価格）を入力ください。※11 | AL41: ■従来の設備費用を除く試算の場合は、保守ランプ価格（１台当りの価格）を入力ください。※11 | AM41: ■従来の設備費用を除く試算の場合は、保守ランプ価格（１台当りの価格）を入力ください。※11 | AN41: ■従来の設備費用を除く試算の場合は、保守ランプ価格（１台当りの価格）を入力ください。※11 | AO41: ■従来の設備費用を除く試算の場合は、保守ランプ価格（１台当りの価格）を入力ください。※11 | AP41: ■従来の設備費用を除く試算の場合は、保守ランプ価格（１台当りの価格）を入力ください。※11 | AQ41: ■従来の設備費用を除く試算の場合は、保守ランプ価格（１台当りの価格）を入力ください。※11 | AR41: ■従来の設備費用を除く試算の場合は、保守ランプ価格（１台当りの価格）を入力ください。※11 | AS41: ■従来の設備費用を除く試算の場合は、保守ランプ価格（１台当りの価格）を入力ください。※11 | AT41: ■従来の設備費用を除く試算の場合は、保守ランプ価格（１台当りの価格）を入力ください。※11 | AU41: ■従来の設備費用を除く試算の場合は、保守ランプ価格（１台当りの価格）を入力ください。※11 | AV41: ■従来の設備費用を除く試算の場合は、保守ランプ価格（１台当りの価格）を入力ください。※11 | AW41: ■従来の設備費用を除く試算の場合は、保守ランプ価格（１台当りの価格）を入力ください。※11 | AX41: ■従来の設備費用を除く試算の場合は、保守ランプ価格（１台当りの価格）を入力ください。※11 | AY41: ■従来の設備費用を除く試算の場合は、保守ランプ価格（１台当りの価格）を入力ください。※11 | AZ41: ■従来の設備費用を除く試算の場合は、保守ランプ価格（１台当りの価格）を入力ください。※11 | BA41: ■従来の設備費用を除く試算の場合は、保守ランプ価格（１台当りの価格）を入力ください。※11 | BB41: ■従来の設備費用を除く試算の場合は、保守ランプ価格（１台当りの価格）を入力ください。※11 | BC41: ■従来の設備費用を除く試算の場合は、保守ランプ価格（１台当りの価格）を入力ください。※11 | BD41: ■従来の設備費用を除く試算の場合は、保守ランプ価格（１台当りの価格）を入力ください。※11 | BE41: ■従来の設備費用を除く試算の場合は、保守ランプ価格（１台当りの価格）を入力ください。※11 | BF41: ■従来の設備費用を除く試算の場合は、保守ランプ価格（１台当りの価格）を入力ください。※11 | BG41: ■従来の設備費用を除く試算の場合は、保守ランプ価格（１台当りの価格）を入力ください。※11 | BH41: ■従来の設備費用を除く試算の場合は、保守ランプ価格（１台当りの価格）を入力ください。※11 | BI41: ■従来の設備費用を除く試算の場合は、保守ランプ価格（１台当りの価格）を入力ください。※11 | BJ41: ■従来の設備費用を除く試算の場合は、保守ランプ価格（１台当りの価格）を入力ください。※11 | BK41: ■従来の設備費用を除く試算の場合は、保守ランプ価格（１台当りの価格）を入力ください。※11 | BL41: ■従来の設備費用を除く試算の場合は、保守ランプ価格（１台当りの価格）を入力ください。※11 | BM41: ■従来の設備費用を除く試算の場合は、保守ランプ価格（１台当りの価格）を入力ください。※11 | BN41: ■従来の設備費用を除く試算の場合は、保守ランプ価格（１台当りの価格）を入力ください。※11 | BO41: ■従来の設備費用を除く試算の場合は、保守ランプ価格（１台当りの価格）を入力ください。※11 | BP41: ■従来の設備費用を除く試算の場合は、保守ランプ価格（１台当りの価格）を入力ください。※11 | BQ41: ■従来の設備費用を除く試算の場合は、保守ランプ価格（１台当りの価格）を入力ください。※11 | BR41: ■従来の設備費用を除く試算の場合は、保守ランプ価格（１台当りの価格）を入力ください。※11 | BS41: ■従来の設備費用を除く試算の場合は、保守ランプ価格（１台当りの価格）を入力ください。※11 | BT41: ■従来の設備費用を除く試算の場合は、保守ランプ価格（１台当りの価格）を入力ください。※11 | BU41: ■従来の設備費用を除く試算の場合は、保守ランプ価格（１台当りの価格）を入力ください。※11 | BV41: ■従来の設備費用を除く試算の場合は、保守ランプ価格（１台当りの価格）を入力ください。※11 | BW41: ■従来の設備費用を除く試算の場合は、保守ランプ価格（１台当りの価格）を入力ください。※11 | BX41: ■従来の設備費用を除く試算の場合は、保守ランプ価格（１台当りの価格）を入力ください。※11 | BY41: ■従来の設備費用を除く試算の場合は、保守ランプ価格（１台当りの価格）を入力ください。※11 | BZ41: ■従来の設備費用を除く試算の場合は、保守ランプ価格（１台当りの価格）を入力ください。※11 | CA41: ■従来の設備費用を除く試算の場合は、保守ランプ価格（１台当りの価格）を入力ください。※11 | CB41: ■従来の設備費用を除く試算の場合は、保守ランプ価格（１台当りの価格）を入力ください。※11 | CC41: ■従来の設備費用を除く試算の場合は、保守ランプ価格（１台当りの価格）を入力ください。※11 | CD41: ■従来の設備費用を除く試算の場合は、保守ランプ価格（１台当りの価格）を入力ください。※11 | CE41: ■従来の設備費用を除く試算の場合は、保守ランプ価格（１台当りの価格）を入力ください。※11 | CF41: ■従来の設備費用を除く試算の場合は、保守ランプ価格（１台当りの価格）を入力ください。※11 | CG41: ■従来の設備費用を除く試算の場合は、保守ランプ価格（１台当りの価格）を入力ください。※11 | CH41: ■従来の設備費用を除く試算の場合は、保守ランプ価格（１台当りの価格）を入力ください。※11 | CI41: ■従来の設備費用を除く試算の場合は、保守ランプ価格（１台当りの価格）を入力ください。※11 | CJ41: ■従来の設備費用を除く試算の場合は、保守ランプ価格（１台当りの価格）を入力ください。※11 | CK41: ■従来の設備費用を除く試算の場合は、保守ランプ価格（１台当りの価格）を入力ください。※11 | CL41: ■従来の設備費用を除く試算の場合は、保守ランプ価格（１台当りの価格）を入力ください。※11 | CM41: ■従来の設備費用を除く試算の場合は、保守ランプ価格（１台当りの価格）を入力ください。※11 | CN41: ■従来の設備費用を除く試算の場合は、保守ランプ価格（１台当りの価格）を入力ください。※11 | CO41: ■従来の設備費用を除く試算の場合は、保守ランプ価格（１台当りの価格）を入力ください。※11 | CP41: ■従来の設備費用を除く試算の場合は、保守ランプ価格（１台当りの価格）を入力ください。※11 | CQ41: ■従来の設備費用を除く試算の場合は、保守ランプ価格（１台当りの価格）を入力ください。※11 | CR41: ■従来の設備費用を除く試算の場合は、保守ランプ価格（１台当りの価格）を入力ください。※11 | CS41: ■従来の設備費用を除く試算の場合は、保守ランプ価格（１台当りの価格）を入力ください。※11 | CT41: ■従来の設備費用を除く試算の場合は、保守ランプ価格（１台当りの価格）を入力ください。※11 | CU41: ■従来の設備費用を除く試算の場合は、保守ランプ価格（１台当りの価格）を入力ください。※11 | CV41: ■従来の設備費用を除く試算の場合は、保守ランプ価格（１台当りの価格）を入力ください。※11 | CW41: ■従来の設備費用を除く試算の場合は、保守ランプ価格（１台当りの価格）を入力ください。※11 | CX41: ■従来の設備費用を除く試算の場合は、保守ランプ価格（１台当りの価格）を入力ください。※11 | CY41: ■従来の設備費用を除く試算の場合は、保守ランプ価格（１台当りの価格）を入力ください。※11 | CZ41: ■従来の設備費用を除く試算の場合は、保守ランプ価格（１台当りの価格）を入力ください。※11 | DA41: ■従来の設備費用を除く試算の場合は、保守ランプ価格（１台当りの価格）を入力ください。※11 | DB41: ■従来の設備費用を除く試算の場合は、保守ランプ価格（１台当りの価格）を入力ください。※11 | DC41: ■従来の設備費用を除く試算の場合は、保守ランプ価格（１台当りの価格）を入力ください。※11 | DD41: ■従来の設備費用を除く試算の場合は、保守ランプ価格（１台当りの価格）を入力ください。※11 | DE41: ■従来の設備費用を除く試算の場合は、保守ランプ価格（１台当りの価格）を入力ください。※11 | DF41: ■従来の設備費用を除く試算の場合は、保守ランプ価格（１台当りの価格）を入力ください。※11 | DG41: ■従来の設備費用を除く試算の場合は、保守ランプ価格（１台当りの価格）を入力ください。※11 | DH41: ■従来の設備費用を除く試算の場合は、保守ランプ価格（１台当りの価格）を入力ください。※11 | DI41: ■従来の設備費用を除く試算の場合は、保守ランプ価格（１台当りの価格）を入力ください。※11 | DJ41: ■従来の設備費用を除く試算の場合は、保守ランプ価格（１台当りの価格）を入力ください。※11 | DK41: ■従来の設備費用を除く試算の場合は、保守ランプ価格（１台当りの価格）を入力ください。※11 | DL41: ■従来の設備費用を除く試算の場合は、保守ランプ価格（１台当りの価格）を入力ください。※11 | DM41: ■従来の設備費用を除く試算の場合は、保守ランプ価格（１台当りの価格）を入力ください。※11 | DN41: ■従来の設備費用を除く試算の場合は、保守ランプ価格（１台当りの価格）を入力ください。※11 | DO41: ■従来の設備費用を除く試算の場合は、保守ランプ価格（１台当りの価格）を入力ください。※11 | DP41: ■従来の設備費用を除く試算の場合は、保守ランプ価格（１台当りの価格）を入力ください。※11 | DQ41: ■従来の設備費用を除く試算の場合は、保守ランプ価格（１台当りの価格）を入力ください。※11 | DR41: ■従来の設備費用を除く試算の場合は、保守ランプ価格（１台当りの価格）を入力ください。※11 | DS41: ■従来の設備費用を除く試算の場合は、保守ランプ価格（１台当りの価格）を入力ください。※11 | DT41: ■従来の設備費用を除く試算の場合は、保守ランプ価格（１台当りの価格）を入力ください。※11 | DU41: ■従来の設備費用を除く試算の場合は、保守ランプ価格（１台当りの価格）を入力ください。※11 | DV41: ■従来の設備費用を除く試算の場合は、保守ランプ価格（１台当りの価格）を入力ください。※11 | DW41: ■従来の設備費用を除く試算の場合は、保守ランプ価格（１台当りの価格）を入力ください。※11 | DX41: ■従来の設備費用を除く試算の場合は、保守ランプ価格（１台当りの価格）を入力ください。※11 | DY41: ■従来の設備費用を除く試算の場合は、保守ランプ価格（１台当りの価格）を入力ください。※11 | DZ41: ■従来の設備費用を除く試算の場合は、保守ランプ価格（１台当りの価格）を入力ください。※11 | EA41: ■従来の設備費用を除く試算の場合は、保守ランプ価格（１台当りの価格）を入力ください。※11 | EB41: ■従来の設備費用を除く試算の場合は、保守ランプ価格（１台当りの価格）を入力ください。※11 | EC41: ■従来の設備費用を除く試算の場合は、保守ランプ価格（１台当りの価格）を入力ください。※11 | ED41: ■従来の設備費用を除く試算の場合は、保守ランプ価格（１台当りの価格）を入力ください。※11 | EE41: ■従来の設備費用を除く試算の場合は、保守ランプ価格（１台当りの価格）を入力ください。※11 | EF41: ■従来の設備費用を除く試算の場合は、保守ランプ価格（１台当りの価格）を入力ください。※11 | EG41: ■従来の設備費用を除く試算の場合は、保守ランプ価格（１台当りの価格）を入力ください。※11 | EH41: ■従来の設備費用を除く試算の場合は、保守ランプ価格（１台当りの価格）を入力ください。※11 | EI41: ■従来の設備費用を除く試算の場合は、保守ランプ価格（１台当りの価格）を入力ください。※11 | EJ41: ■従来の設備費用を除く試算の場合は、保守ランプ価格（１台当りの価格）を入力ください。※11 | EK41: ■従来の設備費用を除く試算の場合は、保守ランプ価格（１台当りの価格）を入力ください。※11 | EL41: ■従来の設備費用を除く試算の場合は、保守ランプ価格（１台当りの価格）を入力ください。※11 | EM41: ■従来の設備費用を除く試算の場合は、保守ランプ価格（１台当りの価格）を入力ください。※11 | EN41: ■従来の設備費用を除く試算の場合は、保守ランプ価格（１台当りの価格）を入力ください。※11 | EO41: ■従来の設備費用を除く試算の場合は、保守ランプ価格（１台当りの価格）を入力ください。※11 | EP41: ■従来の設備費用を除く試算の場合は、保守ランプ価格（１台当りの価格）を入力ください。※11 | EQ41: ■従来の設備費用を除く試算の場合は、保守ランプ価格（１台当りの価格）を入力ください。※11 | ER41: ■従来の設備費用を除く試算の場合は、保守ランプ価格（１台当りの価格）を入力ください。※11 | ES41: ■従来の設備費用を除く試算の場合は、保守ランプ価格（１台当りの価格）を入力ください。※11 | ET41: ■従来の設備費用を除く試算の場合は、保守ランプ価格（１台当りの価格）を入力ください。※11 | EU41: ■従来の設備費用を除く試算の場合は、保守ランプ価格（１台当りの価格）を入力ください。※11 | EV41: ■従来の設備費用を除く試算の場合は、保守ランプ価格（１台当りの価格）を入力ください。※11 | EW41: ■従来の設備費用を除く試算の場合は、保守ランプ価格（１台当りの価格）を入力ください。※11 | EX41: ■従来の設備費用を除く試算の場合は、保守ランプ価格（１台当りの価格）を入力ください。※11 | EY41: ■従来の設備費用を除く試算の場合は、保守ランプ価格（１台当りの価格）を入力ください。※11 | EZ41: ■従来の設備費用を除く試算の場合は、保守ランプ価格（１台当りの価格）を入力ください。※11 | FA41: ■従来の設備費用を除く試算の場合は、保守ランプ価格（１台当りの価格）を入力ください。※11 | FB41: ■従来の設備費用を除く試算の場合は、保守ランプ価格（１台当りの価格）を入力ください。※11 | FC41: ■従来の設備費用を除く試算の場合は、保守ランプ価格（１台当りの価格）を入力ください。※11 | FD41: ■従来の設備費用を除く試算の場合は、保守ランプ価格（１台当りの価格）を入力ください。※11 | FE41: ■従来の設備費用を除く試算の場合は、保守ランプ価格（１台当りの価格）を入力ください。※11 | FF41: ■従来の設備費用を除く試算の場合は、保守ランプ価格（１台当りの価格）を入力ください。※11 | FG41: ■従来の設備費用を除く試算の場合は、保守ランプ価格（１台当りの価格）を入力ください。※11 | FH41: ■従来の設備費用を除く試算の場合は、保守ランプ価格（１台当りの価格）を入力ください。※11 | FI41: ■従来の設備費用を除く試算の場合は、保守ランプ価格（１台当りの価格）を入力ください。※11 | FJ41: ■従来の設備費用を除く試算の場合は、保守ランプ価格（１台当りの価格）を入力ください。※11 | FK41: ■従来の設備費用を除く試算の場合は、保守ランプ価格（１台当りの価格）を入力ください。※11 | FL41: ■従来の設備費用を除く試算の場合は、保守ランプ価格（１台当りの価格）を入力ください。※11 | FM41: ■従来の設備費用を除く試算の場合は、保守ランプ価格（１台当りの価格）を入力ください。※11 | FN41: ■従来の設備費用を除く試算の場合は、保守ランプ価格（１台当りの価格）を入力ください。※11 | FO41: ■従来の設備費用を除く試算の場合は、保守ランプ価格（１台当りの価格）を入力ください。※11 | FP41: ■従来の設備費用を除く試算の場合は、保守ランプ価格（１台当りの価格）を入力ください。※11 | FQ41: ■従来の設備費用を除く試算の場合は、保守ランプ価格（１台当りの価格）を入力ください。※11 | FR41: ■従来の設備費用を除く試算の場合は、保守ランプ価格（１台当りの価格）を入力ください。※11 | FS41: ■従来の設備費用を除く試算の場合は、保守ランプ価格（１台当りの価格）を入力ください。※11 | FT41: ■従来の設備費用を除く試算の場合は、保守ランプ価格（１台当りの価格）を入力ください。※11 | FU41: ■従来の設備費用を除く試算の場合は、保守ランプ価格（１台当りの価格）を入力ください。※11 | FV41: ■従来の設備費用を除く試算の場合は、保守ランプ価格（１台当りの価格）を入力ください。※11 | FW41: ■従来の設備費用を除く試算の場合は、保守ランプ価格（１台当りの価格）を入力ください。※11 | FX41: ■従来の設備費用を除く試算の場合は、保守ランプ価格（１台当りの価格）を入力ください。※11 | FY41: ■従来の設備費用を除く試算の場合は、保守ランプ価格（１台当りの価格）を入力ください。※11 | FZ41: ■従来の設備費用を除く試算の場合は、保守ランプ価格（１台当りの価格）を入力ください。※11 | GA41: ■従来の設備費用を除く試算の場合は、保守ランプ価格（１台当りの価格）を入力ください。※11 | GB41: ■従来の設備費用を除く試算の場合は、保守ランプ価格（１台当りの価格）を入力ください。※11 | GC41: ■従来の設備費用を除く試算の場合は、保守ランプ価格（１台当りの価格）を入力ください。※11 | GD41: ■従来の設備費用を除く試算の場合は、保守ランプ価格（１台当りの価格）を入力ください。※11 | GE41: ■従来の設備費用を除く試算の場合は、保守ランプ価格（１台当りの価格）を入力ください。※11 | GF41: ■従来の設備費用を除く試算の場合は、保守ランプ価格（１台当りの価格）を入力ください。※11 | GG41: ■従来の設備費用を除く試算の場合は、保守ランプ価格（１台当りの価格）を入力ください。※11 | GH41: ■従来の設備費用を除く試算の場合は、保守ランプ価格（１台当りの価格）を入力ください。※11 | GI41: ■従来の設備費用を除く試算の場合は、保守ランプ価格（１台当りの価格）を入力ください。※11 | GJ41: ■従来の設備費用を除く試算の場合は、保守ランプ価格（１台当りの価格）を入力ください。※11 | GK41: ■従来の設備費用を除く試算の場合は、保守ランプ価格（１台当りの価格）を入力ください。※11 | GL41: ■従来の設備費用を除く試算の場合は、保守ランプ価格（１台当りの価格）を入力ください。※11 | GM41: ■従来の設備費用を除く試算の場合は、保守ランプ価格（１台当りの価格）を入力ください。※11 | GN41: ■従来の設備費用を除く試算の場合は、保守ランプ価格（１台当りの価格）を入力ください。※11 | GO41: ■従来の設備費用を除く試算の場合は、保守ランプ価格（１台当りの価格）を入力ください。※11 | GP41: ■従来の設備費用を除く試算の場合は、保守ランプ価格（１台当りの価格）を入力ください。※11 | GQ41: ■従来の設備費用を除く試算の場合は、保守ランプ価格（１台当りの価格）を入力ください。※11 | GR41: ■従来の設備費用を除く試算の場合は、保守ランプ価格（１台当りの価格）を入力ください。※11 | GS41: ■従来の設備費用を除く試算の場合は、保守ランプ価格（１台当りの価格）を入力ください。※11 | GT41: ■従来の設備費用を除く試算の場合は、保守ランプ価格（１台当りの価格）を入力ください。※11 | GU41: ■従来の設備費用を除く試算の場合は、保守ランプ価格（１台当りの価格）を入力ください。※11 | GV41: ■従来の設備費用を除く試算の場合は、保守ランプ価格（１台当りの価格）を入力ください。※11 | GW41: ■従来の設備費用を除く試算の場合は、保守ランプ価格（１台当りの価格）を入力ください。※11 | GX41: ■従来の設備費用を除く試算の場合は、保守ランプ価格（１台当りの価格）を入力ください。※11 | GY41: ■従来の設備費用を除く試算の場合は、保守ランプ価格（１台当りの価格）を入力ください。※11 | GZ41: ■従来の設備費用を除く試算の場合は、保守ランプ価格（１台当りの価格）を入力ください。※11 | HA41: ■従来の設備費用を除く試算の場合は、保守ランプ価格（１台当りの価格）を入力ください。※11 | HB41: ■従来の設備費用を除く試算の場合は、保守ランプ価格（１台当りの価格）を入力ください。※11 | HC41: ■従来の設備費用を除く試算の場合は、保守ランプ価格（１台当りの価格）を入力ください。※11 | HD41: ■従来の設備費用を除く試算の場合は、保守ランプ価格（１台当りの価格）を入力ください。※11 | HE41: ■従来の設備費用を除く試算の場合は、保守ランプ価格（１台当りの価格）を入力ください。※11 | HF41: ■従来の設備費用を除く試算の場合は、保守ランプ価格（１台当りの価格）を入力ください。※11 | HG41: ■従来の設備費用を除く試算の場合は、保守ランプ価格（１台当りの価格）を入力ください。※11 | HH41: ■従来の設備費用を除く試算の場合は、保守ランプ価格（１台当りの価格）を入力ください。※11 | HI41: ■従来の設備費用を除く試算の場合は、保守ランプ価格（１台当りの価格）を入力ください。※11 | HJ41: ■従来の設備費用を除く試算の場合は、保守ランプ価格（１台当りの価格）を入力ください。※11 | HK41: ■従来の設備費用を除く試算の場合は、保守ランプ価格（１台当りの価格）を入力ください。※11 | HL41: ■従来の設備費用を除く試算の場合は、保守ランプ価格（１台当りの価格）を入力ください。※11 | HM41: ■従来の設備費用を除く試算の場合は、保守ランプ価格（１台当りの価格）を入力ください。※11 | HN41: ■従来の設備費用を除く試算の場合は、保守ランプ価格（１台当りの価格）を入力ください。※11 | HO41: ■従来の設備費用を除く試算の場合は、保守ランプ価格（１台当りの価格）を入力ください。※11 | HP41: ■従来の設備費用を除く試算の場合は、保守ランプ価格（１台当りの価格）を入力ください。※11 | HQ41: ■従来の設備費用を除く試算の場合は、保守ランプ価格（１台当りの価格）を入力ください。※11 | HR41: ■従来の設備費用を除く試算の場合は、保守ランプ価格（１台当りの価格）を入力ください。※11 | HS41: ■従来の設備費用を除く試算の場合は、保守ランプ価格（１台当りの価格）を入力ください。※11 | HT41: ■従来の設備費用を除く試算の場合は、保守ランプ価格（１台当りの価格）を入力ください。※11 | HU41: ■従来の設備費用を除く試算の場合は、保守ランプ価格（１台当りの価格）を入力ください。※11 | HV41: ■従来の設備費用を除く試算の場合は、保守ランプ価格（１台当りの価格）を入力ください。※11 | HW41: ■従来の設備費用を除く試算の場合は、保守ランプ価格（１台当りの価格）を入力ください。※11 | HX41: ■従来の設備費用を除く試算の場合は、保守ランプ価格（１台当りの価格）を入力ください。※11 | HY41: ■従来の設備費用を除く試算の場合は、保守ランプ価格（１台当りの価格）を入力ください。※11 | HZ41: ■従来の設備費用を除く試算の場合は、保守ランプ価格（１台当りの価格）を入力ください。※11 | IA41: ■従来の設備費用を除く試算の場合は、保守ランプ価格（１台当りの価格）を入力ください。※11 | IB41: ■従来の設備費用を除く試算の場合は、保守ランプ価格（１台当りの価格）を入力ください。※11 | IC41: ■従来の設備費用を除く試算の場合は、保守ランプ価格（１台当りの価格）を入力ください。※11 | ID41: ■従来の設備費用を除く試算の場合は、保守ランプ価格（１台当りの価格）を入力ください。※11 | IE41: ■従来の設備費用を除く試算の場合は、保守ランプ価格（１台当りの価格）を入力ください。※11 | IF41: ■従来の設備費用を除く試算の場合は、保守ランプ価格（１台当りの価格）を入力ください。※11 | IG41: ■従来の設備費用を除く試算の場合は、保守ランプ価格（１台当りの価格）を入力ください。※11 | IH41: ■従来の設備費用を除く試算の場合は、保守ランプ価格（１台当りの価格）を入力ください。※11 | II41: ■従来の設備費用を除く試算の場合は、保守ランプ価格（１台当りの価格）を入力ください。※11 | IJ41: ■従来の設備費用を除く試算の場合は、保守ランプ価格（１台当りの価格）を入力ください。※11 | IK41: ■従来の設備費用を除く試算の場合は、保守ランプ価格（１台当りの価格）を入力ください。※11 | IL41: ■従来の設備費用を除く試算の場合は、保守ランプ価格（１台当りの価格）を入力ください。※11 | IM41: ■従来の設備費用を除く試算の場合は、保守ランプ価格（１台当りの価格）を入力ください。※11 | IN41: ■従来の設備費用を除く試算の場合は、保守ランプ価格（１台当りの価格）を入力ください。※11 | IO41: ■従来の設備費用を除く試算の場合は、保守ランプ価格（１台当りの価格）を入力ください。※11 | IP41: ■従来の設備費用を除く試算の場合は、保守ランプ価格（１台当りの価格）を入力ください。※11 | IQ41: ■従来の設備費用を除く試算の場合は、保守ランプ価格（１台当りの価格）を入力ください。※11 | IR41: ■従来の設備費用を除く試算の場合は、保守ランプ価格（１台当りの価格）を入力ください。※11 | IS41: ■従来の設備費用を除く試算の場合は、保守ランプ価格（１台当りの価格）を入力ください。※11 | IT41: ■従来の設備費用を除く試算の場合は、保守ランプ価格（１台当りの価格）を入力ください。※11 | IU41: ■従来の設備費用を除く試算の場合は、保守ランプ価格（１台当りの価格）を入力ください。※11 | IV41: ■従来の設備費用を除く試算の場合は、保守ランプ価格（１台当りの価格）を入力ください。※11
A44: ■試算結果
A45: 【結果１】 ランニングコスト比較（年間電力費+年間ランプ費+年間交換作業費）
C46: ランニングコスト | E46: 比較
B47: 蛍光灯 | C47: =IF(C37="",0,ROUND(C37,0)) -> 0 | D47: 円/年 | E47: =IF(C47=0,"-",100%) -> -
B48: ＬＥＤ | C48: =IF(I37="",0,ROUND(I37,0)) -> 0 | D48: 円/年 | E48: =IF(OR(C47=0,C48=0),"-",IF((C48/C47)<0,ROUNDDOWN((C48/C47),2),ROUNDUP((C48/C47),2))) -> -
B49: 差額 | C49: =C48-C47 -> 0 | D49: 円/年 | E49: =IF(OR(C47=0,C49=0),"-",IF((C49/C47)<0,ROUNDDOWN((C49/C47),2),ROUNDUP((C49/C47),2))) -> -
B50: =IF(OR(C49=0,C49>0),"","●ＬＥＤなら年間 "&TEXT(-C49,"#,##0")&"円 お得です！") -> 
A52: 【結果２】 イニシャルコスト比較（設備費用）と設備償却
C53: イニシャルコスト | E53: 比較 | F53: 設備償却
B54: 蛍光灯 | C54: =IF(C39="",0,ROUND(C39,0)) -> 0 | D54: 円 | E54: =IF(C54=0,"-",100%) -> - | F54: =IF(OR(C37=0,I37=0,C56=0),"-",IF((C39-I39)/-(C37-I37)<0,"-",ROUNDUP((C39-I39)/-(C37-I37),1))) -> -
B55: ＬＥＤ | C55: =IF(I39="",0,ROUND(I39,0)) -> 0 | D55: 円 | E55: =IF(OR(C54=0,C55=0),"-",IF((C55/C54)<0,ROUNDDOWN((C55/C54),2),ROUNDUP((C55/C54),2))) -> -
B56: 差額 | C56: =IF(C54="",0,C55-C54) -> 0 | D56: 円 | E56: =IF(OR(C54=0,C56=0),"-",IF((C56/C54)<0,ROUNDDOWN((C56/C54),2),ROUNDUP((C56/C54),2))) -> - | G56: ＊設備償却=イニシャルコスト差額÷ランニングコスト差額
A57: ＊イニシャルコストの償却期間は、従来の照明器具費とＬＥＤ照明器具費の差額を、ランニングコストの差額で割り試算しています。 試算条件によっては、
A58: 「一般社団法人日本照明工業会 ガイド111」による適正交換時期や耐用の限度を超える場合がありますが、寿命を保証するものではありません。
A60: ※1 従来の蛍光灯器具を選択すると、おすすめのLED照明器具が表示されますが、明るさを保証するものではありません。
A61: 明るさ（照度 lx：ルクス）は、照明設計条件（光束、配光特性、設置条件、天井・壁・床の反射率、汚れ等）により異なりますので、照明計算によります。
A62: ※2 積算見積価格は、事業者様向けの積算見積価格であり、一般消費者向けの販売価格ではありません。
A63: ※3 購入価格を入力すると購入価格での試算となります。『クリア』ボタンでリセットされます。
A64: ※4 全光束は省エネ法のエネルギー消費効率測定方法による、蛍光灯照明器具に装着したランプから出る光の量（lm：ルーメン）を示します。
A65: ※5 定格光束はLED照明器具から放出される光の量（lm：ルーメン）を示します。 明るさ（照度 lx：ルクス）の比較は、照明計算によります。
A66: ※6 定格消費電力、平均消費電力は入力電圧200V時の値です。 照度補正形は平均消費電力（照度補正による電力変化の平均値）で試算しています。
A67: ※7 LED光源寿命はLED単体で定められた温度設計に基づいて算出した設計寿命であり、使用環境・使用方法により寿命は異なります。 また、LEDモジュール
A68: としての寿命であり、照明器具としての寿命は他の光源を使用した場合と同様の8～10年です。 LEDモジュールのみの交換はできません。
A69: ※8 年間電力費は電力料金単価28円/kWh（税抜）を初期値として計算しています（一般社団法人日本照明工業会 ガイド A139-2023による）。
A70: ※9 年間点灯時間は3,000時間/年を初期値としています（一般社団法人日本照明工業会 ガイド A139-2023「事務所･工場(一般)･店舗」の点灯時間）。
A71: ※10 器具形状が埋込形（光源色は昼白色）での比較において。
A72: ※11 器具形状が埋込形および直付・埋込兼用形・下面開放で、光源色は昼白色において。
L73: 2023年4月版
C74: =VLOOKUP(品名,DATA!$A$4:$AD$17,3,0) -> KUHAKU | I74: =VLOOKUP(品名,DATA!$A$4:$AD$17,20,0) -> KUHAKULED

Sheet DATA (hidden)
A1: 【DATE】
A2: 従来器具 | R2: 提案ＬＥＤ器具
A3: 従来品名 | B3: 表示形式 | C3: 従来形式 | D3: 従来画像 | E3: 従来器具 | F3: 従来ランプ | G3: 合計 | H3: 定格消費電力 | I3: 平均消費電力 | J3: 定格寿命 | K3: 全光束 | L3: 消費効率 | M3: 照度補正の場合 | N3: 灯数 | O3: 交換費@ | P3: ランプ@ | R3: 提案ＬＥＤ | S3: 提案表示形式 | T3: 提案形式 | U3: 提案画像 | V3: 器具 | W3: ランプ | X3: 合計 | Y3: 定格消費電力 | Z3: 平均消費電力 | AA3: 定格寿命 | AB3: 定格光束 | AC3: 消費効率 | AD3: 照度補正の場合
A4: ▼ | C4: KUHAKU | T4: KUHAKULED
A5: FHP32W4灯 直付・埋込兼用下面開放 | B5: HNM32401A-EN14 | C5: HNM32401AEN14 | E5: 36800 | F5: 5700 | G5: =SUM(E5:F5) -> 42500 | H5: 107 | J5: 12000 | K5: 9620 | L5: =K5/H5 -> 89.90654206 | N5: 4 | O5: 200 | P5: 1900 | R5: FHP32形4灯相当 LED直付・埋込兼用下面開放 照度補正・調光兼用形 昼白色 | S5: NE324AN-JZU14A | T5: NE324ANJZU14A | V5: 65800 | X5: =SUM(V5:W5) -> 65800 | Y5: 56.3 | Z5: 51 | AA5: 40000 | AB5: 8500 | AC5: =AB5/Y5 -> 150.9769094 | AD5: 平均消費電力
A6: FHP32W3灯 埋込下面開放 | B6: HTM32301-EN14 | C6: HTM32301EN14 | E6: 27300 | F6: 5700 | G6: =SUM(E6:F6) -> 33000 | H6: 83 | J6: 12000 | K6: 7370 | L6: =K6/H6 -> 88.79518072 | N6: 3 | O6: 200 | P6: 1900 | R6: FHP32形3灯相当 LED埋込下面開放 照度補正・調光兼用形 昼白色 | S6: TE324AN-JZ14A | T6: TE324ANJZ14A | V6: 55500 | X6: =SUM(V6:W6) -> 55500 | Y6: 44.9 | Z6: 40.6 | AA6: 40000 | AB6: 6560 | AC6: =AB6/Y6 -> 146.1024499 | AD6: 平均消費電力
A7: FHP32W4灯 埋込下面開放 | B7: HTM32401-EN14 | C7: HTM32401EN14 | E7: 28400 | F7: 7600 | G7: 36000 | H7: 107 | J7: 12000 | K7: 9620 | L7: 89.90654206 | N7: 4 | O7: 200 | P7: 1900 | R7: FHP32形4灯相当 LED埋込下面開放 照度補正・調光兼用形 昼白色 | S7: TE324AN-JZU14A | T7: TE324ANJZU14A | V7: 62400 | X7: 62400 | Y7: 56.3 | Z7: 51 | AA7: 40000 | AB7: 8260 | AC7: 146.714032 | AD7: 平均消費電力
A8: FHP32W3灯 埋込ルーバ付 | B8: HTL32301-EN14 | C8: HTL32301EN14 | E8: 32300 | F8: 5700 | G8: 38000 | H8: 83 | J8: 12000 | K8: 7370 | L8: 88.79518072 | N8: 3 | O8: 200 | P8: 1900 | R8: FHP32形3灯相当 LED埋込ルーバ付 照度補正・調光兼用形 昼白色 | S8: TLE324AN-JZ14A | T8: TLE324ANJZ14A | V8: 61200 | X8: 61200 | Y8: 44.9 | Z8: 40.6 | AA8: 40000 | AB8: 6380 | AC8: 142.0935412 | AD8: 平均消費電力
A9: FHP32W4灯 埋込ルーバ付 | B9: HTL32401-EN14 | C9: HTL32401EN14 | E9: 33400 | F9: 7600 | G9: 41000 | H9: 107 | J9: 12000 | K9: 9620 | L9: 89.90654206 | N9: 4 | O9: 200 | P9: 1900 | R9: FHP32形4灯相当 LED埋込ルーバ付 照度補正・調光兼用形 昼白色 | S9: TLE324AN-JZU14A | T9: TLE324ANJZU14A | V9: 68100 | X9: 68100 | Y9: 56.3 | Z9: 51 | AA9: 40000 | AB9: 8030 | AC9: 142.6287744 | AD9: 平均消費電力
A10: FHP32W3灯 埋込乳白カバー付 | B10: HTP32301-EN14 | C10: HTP32301EN14 | E10: 37300 | F10: 5700 | G10: 43000 | H10: 83 | J10: 12000 | K10: 7370 | L10: 88.79518072 | N10: 3 | O10: 200 | P10: 1900 | R10: FHP32形3灯相当 LED埋込乳白カバー付 照度補正・調光兼用形 昼白色 | S10: TPE324AN-JZ14A | T10: TPE324ANJZ14A | V10: 64700 | X10: 64700 | Y10: 44.9 | Z10: 40.6 | AA10: 40000 | AB10: 4800 | AC10: 106.9042316 | AD10: 平均消費電力
A11: FHP32W4灯 埋込乳白カバー付 | B11: HTP32401-EN14 | C11: HTP32401EN14 | E11: 43400 | F11: 7600 | G11: 51000 | H11: 107 | J11: 12000 | K11: 9620 | L11: 89.90654206 | N11: 4 | O11: 200 | P11: 1900 | R11: FHP32形4灯相当 LED埋込乳白カバー付 照度補正・調光兼用形 昼白色 | S11: TPE324AN-JZU14A | T11: TPE324ANJZU14A | V11: 73900 | X11: 73900 | Y11: 56.3 | Z11: 51 | AA11: 40000 | AB11: 6050 | AC11: 107.4600355 | AD11: 平均消費電力
A12: FHP45W4灯 直付・埋込兼用下面開放 | B12: HNM45401A-EN14 | C12: HNM45401AEN14 | E12: 54800 | F12: 9200 | G12: 64000 | H12: 172 | J12: 12000 | K12: 15900 | L12: 92.44186047 | N12: 4 | O12: 200 | P12: 2300 | R12: FHP45形4灯相当 LED直付・埋込兼用下面開放 照度補正・調光兼用形 昼白色 | S12: NE454AN-JZU14A | T12: NE454ANJZU14A | V12: 78500 | X12: 78500 | Y12: 87.4 | Z12: 79.1 | AA12: 40000 | AB12: 12620 | AC12: 144.3935927 | AD12: 平均消費電力
A13: FHP45W4灯 直付・埋込兼用下面開放 照度補正形 | B13: HNM45401A-PKN14 | C13: HNM45401APKN14 | E13: 70800 | F13: 9200 | G13: 80000 | H13: 172 | I13: 146 | J13: 12000 | K13: 15900 | L13: 92.44186047 | M13: 平均消費電力 | N13: 4 | O13: 200 | P13: 2300 | R13: FHP45形4灯相当 LED直付・埋込兼用下面開放 照度補正・調光兼用形 昼白色 | S13: NE454AN-JZU14A | T13: NE454ANJZU14A | V13: 78500 | X13: =SUM(V13:W13) -> 78500 | Y13: 87.4 | Z13: 79.1 | AA13: 40000 | AB13: 12620 | AC13: =AB13/Y13 -> 144.3935927 | AD13: 平均消費電力
A14: FHP45W4灯 直付・埋込兼用ルーバ付 照度補正形 | B14: HNL45401A-PKN14 | C14: HNL45401APKN14 | E14: 76800 | F14: 9200 | G14: 86000 | H14: 172 | I14: 146 | J14: 12000 | K14: 15900 | L14: 92.44186047 | M14: 平均消費電力 | N14: 4 | O14: 200 | P14: 2300 | R14: FHP45形4灯相当 LED直付・埋込兼用ルーバ付 照度補正・調光兼用形 昼白色 | S14: NLE454AN-JZU14A | T14: NLE454ANJZU14A | V14: 85400 | X14: 85400 | Y14: 87.4 | Z14: 79.1 | AA14: 40000 | AB14: 12180 | AC14: =AB14/Y14 -> 139.3592677 | AD14: 平均消費電力
A15: FHP45W4灯 埋込下面開放 | B15: HTM45401-EN14 | C15: HTM45401EN14 | E15: 52800 | F15: 9200 | G15: 62000 | H15: 165 | J15: 12000 | K15: 14700 | L15: 89.09090909 | N15: 4 | O15: 200 | P15: 2300 | R15: FHP45形4灯相当 LED埋込下面開放 照度補正・調光兼用形 昼白色 | S15: TE454AN-JZU14A | T15: TE454ANJZU14A | V15: 75100 | X15: 75100 | Y15: 87.4 | Z15: 79.1 | AA15: 40000 | AB15: 12360 | AC15: =AB15/Y15 -> 141.4187643 | AD15: 平均消費電力
A16: FHP45W4灯 埋込ルーバ付 | B16: HTL45401-EN14 | C16: HTL45401EN14 | E16: 56800 | F16: 9200 | G16: 66000 | H16: 165 | J16: 12000 | K16: 14700 | L16: 89.09090909 | N16: 4 | O16: 200 | P16: 2300 | R16: FHP45形4灯相当 LED埋込ルーバ付 照度補正・調光兼用形 昼白色 | S16: TLE454AN-JZU14A | T16: TLE454ANJZU14A | V16: 82000 | X16: 82000 | Y16: 87.4 | Z16: 79.1 | AA16: 40000 | AB16: 11950 | AC16: =AB16/Y16 -> 136.7276888 | AD16: 平均消費電力
A17: FHP45W4灯 埋込乳白カバー付 | B17: HTP45401-EN14 | C17: HTP45401EN14 | E17: 60800 | F17: 9200 | G17: 70000 | H17: 160 | J17: 12000 | K17: 14230 | L17: 88.9375 | N17: 4 | O17: 200 | P17: 2300 | R17: FHP45形4灯相当 LED埋込乳白カバー付 照度補正・調光兼用形 昼白色 | S17: TPE454AN-JZU14A | T17: TPE454ANJZU14A | V17: 99200 | X17: 99200 | Y17: 87.4 | Z17: 79.1 | AA17: 40000 | AB17: 9780 | AC17: =AB17/Y17 -> 111.8993135 | AD17: 平均消費電力
O19: ↑年間交換作業費は200円/本（税抜）で試算しています（一般社団法人日本照明工業会 技術資料114-1996によるFHF32と同一の交換作業費で試算）。

Sheet ｸﾞﾗﾌ (hidden)
A3: 使用年数 | B3: 0 | C3: 1 | D3: 2 | E3: 3 | F3: 4 | G3: 5 | H3: 6 | I3: 7 | J3: 8 | K3: 9 | L3: 10 | M3: 11 | N3: 12 | O3: 13 | P3: 14 | Q3: 15
A4: 蛍光灯 | B4: =IF(一体形LED!C39="",0,一体形LED!C39/10000) -> 0 | C4: =IF(一体形LED!$C37="","",B4+一体形LED!$C37/10000) -> 0 | D4: =IF(一体形LED!$C37="","",C4+一体形LED!$C37/10000) -> 0 | E4: =IF(一体形LED!$C37="","",D4+一体形LED!$C37/10000) -> 0 | F4: =IF(一体形LED!$C37="","",E4+一体形LED!$C37/10000) -> 0 | G4: =IF(一体形LED!$C37="","",F4+一体形LED!$C37/10000) -> 0 | H4: =IF(一体形LED!$C37="","",G4+一体形LED!$C37/10000) -> 0 | I4: =IF(一体形LED!$C37="","",H4+一体形LED!$C37/10000) -> 0 | J4: =IF(一体形LED!$C37="","",I4+一体形LED!$C37/10000) -> 0 | K4: =IF(一体形LED!$C37="","",J4+一体形LED!$C37/10000) -> 0 | L4: =IF(一体形LED!$C37="","",K4+一体形LED!$C37/10000) -> 0 | M4: =IF(一体形LED!$C37="","",L4+一体形LED!$C37/10000) -> 0 | N4: =IF(一体形LED!$C37="","",M4+一体形LED!$C37/10000) -> 0 | O4: =IF(一体形LED!$C37="","",N4+一体形LED!$C37/10000) -> 0 | P4: =IF(一体形LED!$C37="","",O4+一体形LED!$C37/10000) -> 0 | Q4: =IF(一体形LED!$C37="","",P4+一体形LED!$C37/10000) -> 0
A5: LED | B5: =IF(一体形LED!I39="","",一体形LED!I39/10000) -> 0 | C5: =IF(一体形LED!$I37="","",B5+一体形LED!$I37/10000) -> 0 | D5: =IF(一体形LED!$I37="","",C5+一体形LED!$I37/10000) -> 0 | E5: =IF(一体形LED!$I37="","",D5+一体形LED!$I37/10000) -> 0 | F5: =IF(一体形LED!$I37="","",E5+一体形LED!$I37/10000) -> 0 | G5: =IF(一体形LED!$I37="","",F5+一体形LED!$I37/10000) -> 0 | H5: =IF(一体形LED!$I37="","",G5+一体形LED!$I37/10000) -> 0 | I5: =IF(一体形LED!$I37="","",H5+一体形LED!$I37/10000) -> 0 | J5: =IF(一体形LED!$I37="","",I5+一体形LED!$I37/10000) -> 0 | K5: =IF(一体形LED!$I37="","",J5+一体形LED!$I37/10000) -> 0 | L5: =IF(一体形LED!$I37="","",K5+一体形LED!$I37/10000) -> 0 | M5: =IF(一体形LED!$I37="","",L5+一体形LED!$I37/10000) -> 0 | N5: =IF(一体形LED!$I37="","",M5+一体形LED!$I37/10000) -> 0 | O5: =IF(一体形LED!$I37="","",N5+一体形LED!$I37/10000) -> 0 | P5: =IF(一体形LED!$I37="","",O5+一体形LED!$I37/10000) -> 0 | Q5: =IF(一体形LED!$I37="","",P5+一体形LED!$I37/10000) -> 0
